fUSD/lending_fUSD_20260527
["ID","MTS","AMOUNT","RATE_DAILY","PERIOD"]
[423142209,1779889843000,-500.0,0.00037999,2]
[423142211,1779889843000,-1484.0,0.00038,5]
[423142216,1779889843000,-200.0,0.00038,120]
[423142217,1779889843000,-152.0,0.00038,120]
[423142215,1779889843000,-151.0,0.00038,120]
[423142210,1779889843000,-500.0,0.00037999,2]
[423142214,1779889843000,-2135.79,0.00038,14]
[423142213,1779889843000,-151.48,0.00038,7]
[423142212,1779889843000,-86460.62648066,0.00038,90]
[423142208,1779889843000,-500.0,0.00037999,30]
[423142207,1779889843000,-500.0,0.00037999,30]
[423142190,1779889843000,-157.90300786,0.00037802,5]
[423142205,1779889843000,-174.490142,0.00037997,14]
[423142204,1779889843000,-174.490142,0.00037997,14]
[423142202,1779889843000,-500.0,0.00037952,2]
[423142192,1779889843000,-2479.5792551,0.0003782,95]
[423142199,1779889843000,-430.13132865,0.000379,2]
[423142191,1779889843000,-150.0,0.00037808,60]
[423142188,1779889843000,-500.0,0.00037794,60]
[423142203,1779889843000,-152.71068399,0.0003799,2]
[423142193,1779889843000,-1652.28951,0.0003782,94]
[423142194,1779889843000,-173.5410728,0.00037833,7]
[423142195,1779889843000,-171.84,0.0003784,86]
[423142197,1779889843000,-330.0,0.0003789,47]
[423142196,1779889843000,-150.0,0.00037872,30]
[423142201,1779889843000,-1652.28952,0.0003792,95]
[423142200,1779889843000,-874.54196338,0.000379,12]
[423142198,1779889843000,-261.54414138,0.000379,2]
[423142231,1779889845000,-3626.0,0.00036882,2]
[423142230,1779889845000,-300.0,0.00035504,2]
[423142229,1779889845000,-300.0,0.00035504,2]
[423142233,1779889845000,-66995.40522457,0.00038,60]
[423142237,1779889845000,-2633.0980248,0.00038,60]
[423142232,1779889845000,-1498.22407538,0.00037657,2]
[423142236,1779889845000,-973.29,0.00038,60]
[423142235,1779889845000,-1065.32192759,0.00038,60]
[423142234,1779889845000,-31737.20692136,0.00038,60]
[423142242,1779889846000,-1503.33365338,0.00038,60]
[423142241,1779889846000,-8001.0,0.00038,60]
[423142239,1779889846000,-376.03625,0.00038,60]
[423142240,1779889846000,-3882.41,0.00038,60]
[423142238,1779889846000,-257.35,0.00038,60]
[423142251,1779889873000,552.0,0.00026,2]
[423142252,1779889881000,150.0,0.00029,2]
[423142253,1779889903000,600.0,0.00026,2]
[423142254,1779889927000,150.0,0.00028615,2]
[423142255,1779889939000,467.8713058,0.00029,2]
[423142256,1779889963000,528.0,0.00026,2]
[423142258,1779889976000,3857.4113058,0.00024174,2]
[423142257,1779889976000,7552.1386942,0.00024174,2]
[423142259,1779889977000,6142.5986942,0.00025786,2]
[423142260,1779889977000,5266.9513058,0.00025786,2]
[423142261,1779889993000,540.0,0.00026,2]
[423142262,1779890084000,-162.18125398,0.00029281,2]
[423142263,1779890097000,1.33874602,0.00026,2]
[423142264,1779890097000,190.01125398,0.00026,2]
[423142266,1779890118000,168.02,0.00016712,2]
[423142267,1779890323000,141.79857658,0.00026281,2]
[423142268,1779890323000,386.20142342,0.00026281,2]
[423142269,1779890443000,225.86967327,0.0002579,2]
[423142278,1779890732000,-586.80672004,0.000164,2]
[423142280,1779890951000,-4621.4706949,0.00016463,2]
[423142279,1779890951000,-418.68327996,0.000164,2]
[423142281,1779890951000,-150.0,0.00016627,2]
[423142282,1779890951000,-150.0,0.00016791,2]
[423142284,1779890951000,-198.0,0.0001712,2]
[423142285,1779890951000,-1005.49,0.00017264,2]
[423142286,1779890951000,-1005.49,0.00018127,2]
[423142287,1779890951000,-1005.49,0.0001899,2]
[423142283,1779890951000,-150.0,0.00016956,2]
[423142288,1779890951000,-1005.49,0.00019853,2]
[423142290,1779890951000,-1005.49,0.00020716,2]
[423142292,1779890951000,-512.0,0.00020884,2]
[423142291,1779890951000,-5279.93334734,0.00020717,2]
[423142293,1779890951000,-249.0,0.00021036,2]
[423142294,1779890951000,-356.0,0.00021413,2]
[423142296,1779890951000,-3375.42576758,0.000222,2]
[423142295,1779890951000,-1005.49,0.00021579,2]
[423142289,1779890951000,-300.0,0.00020712,2]
[423142297,1779890954000,-3186.19736739,0.000222,2]
[423142298,1779890959000,-5052.79097978,0.000222,2]
[423142299,1779890969000,-455.58588525,0.000222,2]
[423142302,1779890969000,-642.85975675,0.00023306,2]
[423142301,1779890969000,-1005.49,0.00022443,2]
[423142300,1779890969000,-1200.0,0.00022442,2]
[423142303,1779890971000,-362.63024325,0.00023306,2]
[423142304,1779890971000,-300.0,0.00024167,2]
[423142306,1779890971000,-1110.0,0.00024174,2]
[423142310,1779890971000,-604.0,0.00024489,2]
[423142307,1779890971000,-10737.74,0.00024174,2]
[423142305,1779890971000,-1005.49,0.00024169,2]
[423142308,1779890971000,-1502.86620558,0.00024268,2]
[423142309,1779890971000,-228.57546954,0.0002447,2]
[423142312,1779890971000,-528.0,0.00025082,2]
[423142315,1779890971000,-1005.49,0.00025895,2]
[423142314,1779890971000,-274.13032673,0.0002579,2]
[423142313,1779890971000,-10737.74,0.00025786,2]
[423142316,1779890971000,-1005.49,0.00026759,2]
[423142317,1779890971000,-1005.49,0.00027622,2]
[423142318,1779890971000,-922.2453245,0.00028021,2]
[423142311,1779890971000,-1005.49,0.00025032,2]
[423142319,1779890972000,-2145.38450691,0.00028021,2]
[423142336,1779891031000,-382.64584413,0.00029102,2]
[423142340,1779891031000,-2000.0,0.00029103,120]
[423142341,1779891031000,-211.31224225,0.00029282,2]
[423142334,1779891031000,-200.0,0.00028719,2]
[423142332,1779891031000,-1852.42,0.00028638,2]
[423142333,1779891031000,-1200.0,0.00028718,2]
[423142327,1779891031000,-186.47,0.0002823,120]
[423142330,1779891031000,-922.15352527,0.0002857,2]
[423142328,1779891031000,-1005.49,0.00028485,2]
[423142329,1779891031000,-166.66,0.00028568,30]
[423142325,1779891031000,-462.64369386,0.00028021,2]
[423142326,1779891031000,-1469.72647473,0.00028021,2]
[423142337,1779891031000,-817.35415587,0.00029102,2]
[423142331,1779891031000,-1895.78647473,0.0002857,2]
[423142335,1779891031000,-150.0,0.00029,2]
[423142349,1779891031000,-164.02,0.0002964,30]
[423142352,1779891031000,-159.0,0.00029723,30]
[423142339,1779891031000,-300.0,0.00029102,2]
[423142354,1779891031000,-191.15732096,0.00029747,7]
[423142342,1779891031000,-166.24,0.00029305,2]
[423142343,1779891031000,-582.63716698,0.00029348,2]
[423142346,1779891031000,-150.0,0.00029415,30]
[423142355,1779891031000,-1549.71,0.00029843,2]
[423142348,1779891031000,-171.11991819,0.000295,2]
[423142338,1779891031000,-300.0,0.00029102,2]
[423142351,1779891031000,-154.50535349,0.00029723,30]
[423142347,1779891031000,-171.11991821,0.000295,2]
[423142344,1779891031000,-422.85283302,0.00029348,2]
[423142353,1779891031000,-154.0,0.00029723,30]
[423142350,1779891031000,-160.0,0.00029723,30]
[423142345,1779891031000,-533.0,0.000294,5]
[423142385,1779891032000,-199.64691868,0.00032,120]
[423142378,1779891032000,-573.47196289,0.00031226,7]
[423142382,1779891032000,-500.0,0.00031933,2]
[423142381,1779891032000,-166.24,0.00031724,2]
[423142383,1779891032000,-1005.49,0.00031938,2]
[423142387,1779891032000,-832.0,0.00032246,30]
[423142391,1779891032000,-1442.38,0.00032727,2]
[423142384,1779891032000,-377.77540437,0.00032,120]
[423142388,1779891032000,-979.504,0.00032345,32]
[423142390,1779891032000,-159.0,0.00032723,30]
[423142392,1779891032000,-1000.0,0.00032728,120]
[423142394,1779891032000,-314.1,0.00032742,120]
[423142386,1779891032000,-192.78446307,0.00032,120]
[423142372,1779891032000,-154.0,0.00030723,30]
[423142389,1779891032000,-186.47,0.00032668,120]
[423142395,1779891032000,-1005.49,0.00032801,2]
[423142397,1779891032000,-366.16,0.00032801,2]
[423142393,1779891032000,-2000.0,0.00032741,120]
[423142370,1779891032000,-382.31464193,0.00030635,7]
[423142368,1779891032000,-200.0,0.00030519,2]
[423142375,1779891032000,-12407.77,0.00031047,2]
[423142396,1779891032000,-2152.68,0.00032801,2]
[423142358,1779891032000,-199.39128111,0.00029988,7]
[423142356,1779891032000,-798.35,0.00029955,2]
[423142357,1779891032000,-161.75,0.00029963,30]
[423142359,1779891032000,-1000.0,0.00030137,10]
[423142376,1779891032000,-1005.49,0.00031074,2]
[423142360,1779891032000,-1000.0,0.00030137,10]
[423142363,1779891032000,-174.69,0.00030196,2]
[423142373,1779891032000,-250.0,0.00030823,2]
[423142380,1779891032000,-154.0,0.00031723,30]
[423142362,1779891032000,-700.175,0.00030137,2]
[423142371,1779891032000,-159.0,0.00030723,30]
[423142377,1779891032000,-1680.0,0.00031126,3]
[423142369,1779891032000,-160.0,0.00030583,2]
[423142364,1779891032000,-1005.49,0.00030211,2]
[423142379,1779891032000,-159.0,0.00031723,30]
[423142374,1779891032000,-5000.0,0.00030997,120]
[423142361,1779891032000,-1000.0,0.00030137,10]
[423142365,1779891032000,-150.0,0.00030299,2]
[423142367,1779891032000,-689.28,0.00030311,2]
[423142401,1779891032000,-377.77540437,0.00033,120]
[423142408,1779891032000,-268.13756542,0.00033529,7]
[423142399,1779891032000,-166.63,0.00032805,2]
[423142428,1779891032000,-150.0,0.00034101,7]
[423142426,1779891032000,-150.0,0.00034101,7]
[423142432,1779891032000,-150.0,0.00034101,7]
[423142430,1779891032000,-150.0,0.00034101,7]
[423142427,1779891032000,-150.0,0.00034101,7]
[423142424,1779891032000,-150.0,0.00034101,30]
[423142431,1779891032000,-150.0,0.00034101,7]
[423142429,1779891032000,-150.0,0.00034101,7]
[423142425,1779891032000,-150.0,0.00034101,7]
[423142434,1779891032000,-166.24,0.00034142,2]
[423142435,1779891032000,-2000.0,0.00034247,30]
[423142438,1779891032000,-150.0,0.00034452,60]
[423142433,1779891032000,-150.0,0.00034101,7]
[423142437,1779891032000,-150.0,0.00034452,60]
[423142440,1779891032000,-150.0,0.00034522,30]
[423142439,1779891032000,-245.00898,0.00034452,60]
[423142441,1779891032000,-500.0,0.00034542,2]
[423142400,1779891032000,-350.0,0.0003298,2]
[423142436,1779891032000,-150.0,0.00034338,7]
[423142422,1779891032000,-415.78432906,0.00034091,10]
[423142423,1779891032000,-2100.42039499,0.00034091,10]
[423142418,1779891032000,-377.77540437,0.000339,120]
[423142403,1779891032000,-519.21,0.00033037,2]
[423142398,1779891032000,-3489.95,0.00032801,2]
[423142421,1779891032000,-501.55199785,0.00034091,10]
[423142405,1779891032000,-39.04195023,0.00033529,7]
[423142406,1779891032000,-541.37804977,0.00033529,7]
[423142410,1779891032000,-588.61,0.00033529,7]
[423142407,1779891032000,-285.58243458,0.00033529,7]
[423142404,1779891032000,-174.64,0.000335,120]
[423142411,1779891032000,-566.25,0.00033529,7]
[423142402,1779891032000,-199.64691868,0.00033,120]
[423142409,1779891032000,-562.23,0.00033529,7]
[423142414,1779891032000,-160.0,0.00033723,30]
[423142413,1779891032000,-133.16635544,0.00033529,7]
[423142415,1779891032000,-186.0,0.00033736,3]
[423142417,1779891032000,-224.94131753,0.00033804,2]
[423142416,1779891032000,-125.05868247,0.00033804,2]
[423142419,1779891032000,-523.2832781,0.00034091,10]
[423142420,1779891032000,-1850.0,0.00034091,10]
[423142412,1779891032000,-462.63364456,0.00033529,7]
[423142466,1779891033000,-150.0,0.00035364,7]
[423142454,1779891033000,-295.44717618,0.00034985,2]
[423142448,1779891033000,-271.5571936,0.00034726,60]
[423142449,1779891033000,-150.0,0.00034733,7]
[423142455,1779891033000,-820.0,0.00035,5]
[423142452,1779891033000,-150.0,0.00034943,30]
[423142445,1779891033000,-250.0,0.00034726,60]
[423142451,1779891033000,-500.0,0.00034849,2]
[423142453,1779891033000,-704.55282382,0.00034985,2]
[423142446,1779891033000,-294.10431835,0.00034726,120]
[423142444,1779891033000,-91.22099171,0.00034629,2]
[423142443,1779891033000,-258.77900829,0.00034629,2]
[423142442,1779891033000,-150.0,0.00034575,7]
[423142457,1779891033000,-150.0,0.00035,4]
[423142447,1779891033000,-150.0,0.00034726,60]
[423142474,1779891033000,-500.0,0.00035402,7]
[423142450,1779891033000,-150.0,0.00034812,7]
[423142463,1779891033000,-150.0,0.00035285,7]
[423142460,1779891033000,-215.46156935,0.00035139,2]
[423142470,1779891033000,-500.0,0.00035402,2]
[423142459,1779891033000,-150.0,0.00035049,7]
[423142476,1779891033000,-1247.66468381,0.00035403,2]
[423142473,1779891033000,-179.55,0.00035402,2]
[423142469,1779891033000,-500.0,0.00035402,7]
[423142472,1779891033000,-500.0,0.00035402,7]
[423142458,1779891033000,-150.0,0.00035049,7]
[423142475,1779891033000,-589.21833954,0.00035402,7]
[423142467,1779891033000,-150.0,0.00035364,7]
[423142465,1779891033000,-23.7916299,0.00035364,7]
[423142468,1779891033000,-150.0,0.00035364,30]
[423142456,1779891033000,-377.77540437,0.00035,120]
[423142464,1779891033000,-126.2083701,0.00035364,7]
[423142461,1779891033000,-17.5443701,0.0003519,30]
[423142462,1779891033000,-144.1556299,0.0003519,30]
[423142471,1779891033000,-500.0,0.00035402,7]
[423142504,1779891038000,-4492.53,0.00034091,10]
[423142500,1779891038000,-164.02,0.00029559,30]
[423142499,1779891038000,-157.5,0.00029353,30]
[423142502,1779891038000,-206.94351467,0.00030635,7]
[423142501,1779891038000,-151.1977421,0.000301,15]
[423142506,1779891038000,-4442.83812417,0.00035403,2]
[423142505,1779891038000,-182.814422,0.000353,2]
[423142507,1779891038000,-14026.99248684,0.00035403,2]
[423142503,1779891038000,-413.88702933,0.00031227,7]
[423142508,1779891038000,-288.18867524,0.00035403,2]
[423142509,1779891038000,-6672.00914848,0.00035403,2]
[423142510,1779891038000,-1478.63014659,0.00035403,2]
[423142511,1779891038000,-4144.1699421,0.00035403,2]
[423142512,1779891038000,-1258.03447554,0.00035403,2]
[423142602,1779891040000,-300.0,0.00035504,2]
[423142594,1779891040000,-493.38669858,0.00035504,2]
[423142592,1779891040000,-300.0,0.00035504,2]
[423142593,1779891040000,-300.0,0.00035504,2]
[423142600,1779891040000,-300.0,0.00035504,2]
[423142601,1779891040000,-300.0,0.00035504,2]
[423142599,1779891040000,-605.31118564,0.00035504,2]
[423142596,1779891040000,-300.0,0.00035504,2]
[423142603,1779891040000,-528.48327171,0.00035504,2]
[423142598,1779891040000,-300.0,0.00035504,2]
[423142595,1779891040000,-300.0,0.00035504,2]
[423142605,1779891040000,-894.65434383,0.00035504,2]
[423142614,1779891040000,-300.0,0.00035504,2]
[423142612,1779891040000,-300.0,0.00035504,2]
[423142608,1779891040000,-302.21937029,0.00035504,2]
[423142611,1779891040000,-300.99795142,0.00035504,2]
[423142597,1779891040000,-300.0,0.00035504,2]
[423142591,1779891040000,-300.0,0.00035504,2]
[423142573,1779891040000,-3430.72006148,0.00035403,2]
[423142587,1779891040000,-300.0,0.00035504,2]
[423142572,1779891040000,-1410.86696782,0.00035403,2]
[423142574,1779891040000,-571.95286726,0.00035403,2]
[423142575,1779891040000,-695.86122067,0.00035403,2]
[423142578,1779891040000,-2500.0,0.00035404,2]
[423142576,1779891040000,-54.13877933,0.00035403,2]
[423142577,1779891040000,-1771.43822067,0.00035403,2]
[423142579,1779891040000,-350.0,0.00035453,2]
[423142589,1779891040000,-300.0,0.00035504,2]
[423142582,1779891040000,-1096.2926835,0.00035504,2]
[423142584,1779891040000,-300.0,0.00035504,2]
[423142583,1779891040000,-300.0,0.00035504,2]
[423142604,1779891040000,-1068.40163352,0.00035504,2]
[423142585,1779891040000,-371.57842453,0.00035504,2]
[423142586,1779891040000,-300.0,0.00035504,2]
[423142588,1779891040000,-300.0,0.00035504,2]
[423142590,1779891040000,-300.0,0.00035504,2]
[423142580,1779891040000,-250.0,0.00035501,7]
[423142609,1779891040000,-300.0,0.00035504,2]
[423142581,1779891040000,-300.0,0.00035504,2]
[423142610,1779891040000,-300.0,0.00035504,2]
[423142642,1779891040000,-300.0,0.00035504,2]
[423142644,1779891040000,-1148.83589152,0.00035504,2]
[423142658,1779891040000,-300.0,0.00035504,2]
[423142662,1779891040000,-594.79850986,0.00035504,2]
[423142660,1779891040000,-300.0,0.00035504,2]
[423142665,1779891040000,-300.0,0.00035504,2]
[423142672,1779891040000,-300.0,0.00035504,2]
[423142667,1779891040000,-300.0,0.00035504,2]
[423142674,1779891040000,-578.28315025,0.00035504,2]
[423142669,1779891040000,-464.48677942,0.00035504,2]
[423142678,1779891040000,-452.52893397,0.00035504,2]
[423142676,1779891040000,-300.0,0.00035504,2]
[423142680,1779891040000,-300.0,0.00035504,2]
[423142683,1779891040000,-300.0,0.00035504,2]
[423142685,1779891040000,-300.0,0.00035504,2]
[423142687,1779891040000,-300.0,0.00035504,2]
[423142689,1779891040000,-466.72874829,0.00035504,2]
[423142655,1779891040000,-300.0,0.00035504,2]
[423142640,1779891040000,-300.09384644,0.00035504,2]
[423142607,1779891040000,-300.0,0.00035504,2]
[423142653,1779891040000,-1634.44392223,0.00035504,2]
[423142651,1779891040000,-466.85864914,0.00035504,2]
[423142606,1779891040000,-727.07827244,0.00035504,2]
[423142613,1779891040000,-300.0,0.00035504,2]
[423142615,1779891040000,-300.0,0.00035504,2]
[423142619,1779891040000,-1263.96825586,0.00035504,2]
[423142616,1779891040000,-300.0,0.00035504,2]
[423142627,1779891040000,-300.0,0.00035504,2]
[423142625,1779891040000,-527.62572404,0.00035504,2]
[423142617,1779891040000,-300.0,0.00035504,2]
[423142623,1779891040000,-344.45437934,0.00035504,2]
[423142629,1779891040000,-300.0,0.00035504,2]
[423142621,1779891040000,-300.0,0.00035504,2]
[423142634,1779891040000,-300.0,0.00035504,2]
[423142636,1779891040000,-865.6208675,0.00035504,2]
[423142647,1779891040000,-310.02493426,0.00035504,2]
[423142638,1779891040000,-950.32029804,0.00035504,2]
[423142649,1779891040000,-300.0,0.00035504,2]
[423142631,1779891040000,-300.0,0.00035504,2]
[423142771,1779891041000,-300.0,0.00035504,2]
[423142774,1779891041000,-300.0,0.00035504,2]
[423142770,1779891041000,-300.0,0.00035504,2]
[423142757,1779891041000,-894.65434383,0.00035504,2]
[423142742,1779891041000,-300.0,0.00035504,2]
[423142753,1779891041000,-528.48327171,0.00035504,2]
[423142744,1779891041000,-605.31118564,0.00035504,2]
[423142751,1779891041000,-300.0,0.00035504,2]
[423142769,1779891041000,-300.99795142,0.00035504,2]
[423142755,1779891041000,-1068.40163352,0.00035504,2]
[423142767,1779891041000,-300.0,0.00035504,2]
[423142782,1779891041000,-300.0,0.00035504,2]
[423142773,1779891041000,-300.0,0.00035504,2]
[423142761,1779891041000,-300.0,0.00035504,2]
[423142763,1779891041000,-302.21937029,0.00035504,2]
[423142759,1779891041000,-727.07827244,0.00035504,2]
[423142765,1779891041000,-300.0,0.00035504,2]
[423142780,1779891041000,-1263.96825586,0.00035504,2]
[423142778,1779891041000,-300.0,0.00035504,2]
[423142776,1779891041000,-300.0,0.00035504,2]
[423142748,1779891041000,-300.0,0.00035504,2]
[423142787,1779891041000,-300.0,0.00035504,2]
[423142793,1779891041000,-300.0,0.00035504,2]
[423142772,1779891041000,-300.0,0.00035504,2]
[423142741,1779891041000,-300.0,0.00035504,2]
[423142714,1779891041000,-300.0,0.00035504,2]
[423142746,1779891041000,-300.0,0.00035504,2]
[423142698,1779891041000,-300.0,0.00035504,2]
[423142700,1779891041000,-300.0,0.00035504,2]
[423142704,1779891041000,-361.3543706,0.00035504,2]
[423142702,1779891041000,-300.0,0.00035504,2]
[423142693,1779891041000,-484.76763572,0.00035504,2]
[423142691,1779891041000,-300.0,0.00035504,2]
[423142695,1779891041000,-310.28230408,0.00035504,2]
[423142706,1779891041000,-300.0,0.00035504,2]
[423142708,1779891041000,-1096.2926835,0.00035504,2]
[423142721,1779891041000,-300.0,0.00035504,2]
[423142722,1779891041000,-300.0,0.00035504,2]
[423142710,1779891041000,-300.0,0.00035504,2]
[423142724,1779891041000,-300.0,0.00035504,2]
[423142728,1779891041000,-300.0,0.00035504,2]
[423142726,1779891041000,-300.0,0.00035504,2]
[423142716,1779891041000,-300.0,0.00035504,2]
[423142789,1779891041000,-300.0,0.00035504,2]
[423142712,1779891041000,-300.0,0.00035504,2]
[423142730,1779891041000,-300.0,0.00035504,2]
[423142719,1779891041000,-300.0,0.00035504,2]
[423142735,1779891041000,-300.12808339,0.00035504,2]
[423142737,1779891041000,-300.0,0.00035504,2]
[423142732,1779891041000,-493.38669858,0.00035504,2]
[423142739,1779891041000,-300.0,0.00035504,2]
[423142783,1779891041000,-344.45437934,0.00035504,2]
[423142801,1779891041000,-300.0,0.00035504,2]
[423142791,1779891041000,-300.0,0.00035504,2]
[423142850,1779891041000,-300.0,0.00035504,2]
[423142859,1779891041000,-370.65417125,0.00035504,2]
[423142856,1779891041000,-933.69403119,0.00035504,2]
[423142855,1779891041000,-263.39072739,0.00035504,2]
[423142849,1779891041000,-310.28230408,0.00035504,2]
[423142863,1779891041000,-150.0,0.00035522,7]
[423142864,1779891041000,-303.80851446,0.00035616,7]
[423142871,1779891041000,-150.0,0.00035785,30]
[423142869,1779891041000,-150.0,0.00035759,7]
[423142867,1779891041000,-152.0,0.00035661,7]
[423142861,1779891041000,-500.0,0.00035505,120]
[423142785,1779891041000,-527.62572404,0.00035504,2]
[423142873,1779891041000,-161.7,0.000358,98]
[423142874,1779891041000,-184.7831,0.00035837,2]
[423142878,1779891041000,-5000.0,0.00035853,2]
[423142889,1779891041000,-295.23438966,0.00035952,120]
[423142891,1779891041000,-329942.30429681,0.00035953,2]
[423142882,1779891041000,-457.32001439,0.00035853,2]
[423142880,1779891041000,-2929.69067277,0.00035853,2]
[423142886,1779891041000,-500.0,0.00035952,120]
[423142876,1779891041000,-2000.0,0.00035853,2]
[423142888,1779891041000,-500.0,0.00035952,120]
[423142890,1779891041000,-500.0,0.00035952,30]
[423142892,1779891041000,-385.83571343,0.00035853,10]
[423142884,1779891041000,-525.0,0.00035904,2]
[423142845,1779891041000,-300.0,0.00035504,2]
[423142853,1779891041000,-827.18086267,0.00035504,2]
[423142837,1779891041000,-300.0,0.00035504,2]
[423142799,1779891041000,-300.09384644,0.00035504,2]
[423142795,1779891041000,-950.32029804,0.00035504,2]
[423142797,1779891041000,-865.6208675,0.00035504,2]
[423142803,1779891041000,-1148.83589152,0.00035504,2]
[423142813,1779891041000,-300.0,0.00035504,2]
[423142809,1779891041000,-300.0,0.00035504,2]
[423142807,1779891041000,-300.0,0.00035504,2]
[423142819,1779891041000,-594.79850986,0.00035504,2]
[423142815,1779891041000,-300.0,0.00035504,2]
[423142843,1779891041000,-300.0,0.00035504,2]
[423142811,1779891041000,-1634.44392223,0.00035504,2]
[423142805,1779891041000,-310.02493426,0.00035504,2]
[423142823,1779891041000,-300.0,0.00035504,2]
[423142839,1779891041000,-300.0,0.00035504,2]
[423142841,1779891041000,-300.0,0.00035504,2]
[423142847,1779891041000,-484.76763572,0.00035504,2]
[423142817,1779891041000,-300.0,0.00035504,2]
[423142831,1779891041000,-300.0,0.00035504,2]
[423142833,1779891041000,-452.52893397,0.00035504,2]
[423142835,1779891041000,-300.0,0.00035504,2]
[423142825,1779891041000,-464.48677942,0.00035504,2]
[423142827,1779891041000,-300.0,0.00035504,2]
[423142829,1779891041000,-578.28315025,0.00035504,2]
[423142821,1779891041000,-300.0,0.00035504,2]
[423142900,1779891043000,-300.0,0.00035504,2]
[423142903,1779891043000,-2960.30528539,0.00035953,2]
[423142899,1779891043000,-3743.77,0.00035494,10]
[423142902,1779891043000,-197.19226216,0.00035853,10]
[423142901,1779891043000,-300.0,0.00035504,2]
[423142905,1779891043000,-4754.48066699,0.00035953,2]
[423142906,1779891043000,-269.8451991,0.00035953,2]
[423142904,1779891043000,-247393.69406666,0.00035953,2]
[423142907,1779891043000,-10597.26206478,0.00035953,2]
[423142909,1779891043000,-10525.0944,0.00035953,2]
[423142908,1779891043000,-519.13704841,0.00035953,2]
[423142910,1779891043000,-1218.80847683,0.00035953,2]
[423142923,1779891046000,-6259.76246587,0.00035953,2]
[423142921,1779891046000,-518.05101758,0.00035953,2]
[423142922,1779891046000,-12957.25836996,0.00035953,2]
[423142918,1779891046000,-814.39370128,0.00035504,2]
[423142920,1779891046000,-175.05,0.00035504,7]
[423142919,1779891046000,-281.89898222,0.00035504,2]
[423142915,1779891046000,-249.67266165,0.00035504,2]
[423142925,1779891046000,-77811.26760631,0.00035953,2]
[423142914,1779891046000,-343.45173307,0.00035504,2]
[423142912,1779891046000,-528.0,0.00025082,2]
[423142916,1779891046000,-160.93,0.00035504,7]
[423142913,1779891046000,-214.0,0.00035303,2]
[423142917,1779891046000,-10870.62469268,0.00035953,2]
[423142924,1779891046000,-1580.66914263,0.00035953,2]
[423142933,1779891046000,-150.0,0.00035996,7]
[423142926,1779891046000,-200.0,0.00035953,90]
[423142931,1779891046000,-730.52382445,0.0003599,2]
[423142932,1779891046000,-150.0,0.00035996,7]
[423142927,1779891046000,-200.0,0.00035953,90]
[423142930,1779891046000,-260.372207,0.00035953,90]
[423142934,1779891046000,-150.0,0.00035996,7]
[423142928,1779891046000,-200.0,0.00035953,90]
[423142929,1779891046000,-200.0,0.00035953,90]
[423142937,1779891046000,-528.0,0.00036066,13]
[423142936,1779891046000,-377.77540437,0.00036,120]
[423142938,1779891046000,-2929.69067275,0.00036069,2]
[423142939,1779891046000,-250.0,0.00036069,30]
[423142940,1779891046000,-909.32129282,0.00036127,2]
[423142935,1779891046000,-150.0,0.00035996,7]
[423142948,1779891182000,3995.62728544,0.00026591,120]
[423142951,1779891196000,-647.53310446,0.00024174,2]
[423142952,1779891207000,-647.53310446,0.00024174,2]
[423142953,1779891229000,-800.0,0.00024174,2]
[423142954,1779891230000,-800.0,0.00024174,2]
[423142956,1779891249000,-800.0,0.00024174,2]
[423142957,1779891260000,-800.0,0.00024174,2]